bitfinex/quotes_BTCUSD_20250221
["timestamp","ask_amount","ask_price","bid_price","bid_amount"]
[1740141706715,0.0008507,99004.0,99003.0,0.298812]
[1740141706879,0.0008507,99004.0,99003.0,0.299812]
[1740141707079,0.0028507,99004.0,99003.0,0.299812]
[1740141707314,0.0028507,99004.0,99003.0,0.298812]
[1740141707520,0.0008507,99004.0,99003.0,0.301812]
[1740141707897,0.0008507,99004.0,99003.0,0.304812]
[1740141713603,0.0008507,99004.0,99003.0,0.301812]
[1740141713803,0.0008507,99004.0,99003.0,0.100102]
[1740141714005,0.0008507,99004.0,99003.0,0.104102]
[1740141714229,0.1523597,99004.0,99003.0,0.104102]
[1740141714429,0.0008507,99004.0,99003.0,0.005702]
[1740141714640,0.1523597,99004.0,99003.0,0.023702]
[1740141714833,0.0008507,99004.0,99003.0,0.023702]
[1740141715239,0.0008507,99004.0,99003.0,0.175212]
[1740141715474,0.0008507,99004.0,99003.0,0.021702]
[1740141715660,0.0008507,99004.0,99003.0,0.023702]
[1740141715879,0.0008507,99004.0,99003.0,0.021702]
[1740141716339,0.1523597,99004.0,99003.0,0.001702]
[1740141716708,0.1523597,99004.0,99003.0,0.021702]
[1740141717535,0.1533597,99004.0,99003.0,0.021702]
[1740141717898,0.1523597,99004.0,99003.0,0.021702]
[1740141718302,0.1543597,99004.0,99003.0,0.021702]
[1740141718821,0.1553597,99004.0,99003.0,0.021702]
[1740141719024,0.1553597,99004.0,99003.0,0.001702]
[1740141720279,0.31423435,99004.0,99003.0,0.001702]
[1740141720505,0.25800539,99004.0,99003.0,0.001702]
[1740141722151,0.0038507,99004.0,99003.0,0.021702]
[1740141722938,0.1543597,99004.0,99003.0,0.021702]
[1740141723270,0.0038507,99004.0,99003.0,0.021702]
[1740141723475,0.1533597,99004.0,99003.0,0.021702]
[1740141723588,0.1523597,99004.0,99003.0,0.021702]
[1740141723792,0.0028507,99004.0,99003.0,0.021702]
[1740141724306,0.1523597,99004.0,99003.0,0.021702]
[1740141724718,0.1533597,99004.0,99003.0,0.021702]
[1740141726450,0.3478608,99004.0,99003.0,0.001702]
[1740141727223,0.25600539,99004.0,99003.0,0.001702]
[1740141728875,0.40600539,99004.0,99003.0,0.001702]
[1740141731185,0.41348539,99004.0,99003.0,0.001702]
[1740141731606,0.44498608,99004.0,99003.0,0.001702]
[1740141731815,0.52118608,99004.0,99003.0,0.001702]
[1740141731973,1.21931708,99004.0,99003.0,0.001702]
[1740141732180,1.30368365,99004.0,99003.0,0.001702]
[1740141732384,1.22431708,99004.0,99003.0,0.002702]
[1740141732743,1.22431708,99004.0,99003.0,0.001702]
[1740141732955,1.22931708,99004.0,99003.0,0.002702]
[1740141733196,1.22831708,99004.0,99003.0,0.002702]
[1740141733615,1.23231708,99004.0,99003.0,0.003702]
[1740141733995,1.33096277,99004.0,99003.0,0.002702]
[1740141734367,1.33496277,99004.0,99003.0,0.003702]
[1740141736199,1.34950362,99004.0,99003.0,0.003702]
[1740141736371,1.37818824,99004.0,99003.0,0.003702]
[1740141737453,1.34950362,99004.0,99003.0,0.003702]
[1740141739055,1.39500362,99004.0,99003.0,0.003702]
[1740141740830,1.29235793,99004.0,99003.0,0.003702]
[1740141742952,1.61475793,99004.0,99003.0,0.003702]
[1740141751794,1.61471793,99004.0,99003.0,0.003702]
[1740141752582,0.91658693,99004.0,99003.0,0.003702]
[1740141753048,3.52451393,99004.0,99003.0,0.003702]
[1740141753252,3.62715962,99004.0,99003.0,0.003702]
[1740141754979,3.61971962,99004.0,99003.0,0.003702]
[1740141755129,3.14713262,99004.0,99003.0,0.003702]
[1740141755309,2.57451093,99004.0,99003.0,0.003702]
[1740141755518,1.45027893,99004.0,99003.0,0.003702]
[1740141755939,1.24408893,99004.0,99003.0,0.003702]
[1740141757897,1.18940393,99004.0,99003.0,0.003702]
[1740141762913,1.18196393,99004.0,99003.0,0.003702]
[1740141763110,0.89749262,99004.0,99003.0,0.003702]
[1740141763525,3.02522062,99004.0,99003.0,0.003702]
[1740141763727,3.38529262,99004.0,99003.0,0.003702]
[1740141766332,3.42291771,99004.0,99003.0,0.003702]
[1740141768328,3.27140871,99004.0,98996.0,0.001701]
[1740141768540,0.41870554,98997.0,98996.0,0.001701]
[1740141768677,3.05813323,98997.0,98996.0,0.001701]
[1740141769130,3.08736631,98997.0,98996.0,0.001701]
[1740141769510,3.08736631,98997.0,98996.0,0.002701]
[1740141770023,3.08736631,98997.0,98996.0,0.003701]
[1740141770406,3.190012,98997.0,98996.0,0.002701]
[1740141770606,3.190012,98997.0,98996.0,0.001701]
[1740141770736,3.195012,98997.0,98996.0,0.001701]
[1740141771897,3.200012,98997.0,98996.0,0.002701]
[1740141772983,3.300012,98997.0,98996.0,0.002701]
[1740141774465,3.295012,98997.0,98996.0,0.002701]
[1740141774670,3.302012,98997.0,98996.0,0.003701]
[1740141774905,3.297012,98997.0,98996.0,0.002701]
[1740141775885,3.304012,98997.0,98996.0,0.003701]
[1740141776555,3.27477892,98997.0,98996.0,0.003701]
[1740141776701,0.66685192,98997.0,98996.0,0.003701]
[1740141776919,3.27477892,98997.0,98996.0,0.003701]
[1740141777828,3.31238999,98997.0,98996.0,0.003701]
[1740141779092,3.31238999,98997.0,98996.0,1e-06]
[1740141779222,0.15153,98990.0,98989.0,0.0007022]
[1740141779432,4.17648705,98990.0,98989.0,0.0007022]
[1740141779613,4.17527155,98990.0,98989.0,0.0007022]
[1740141780669,4.17527155,98990.0,98989.0,0.0017022]
[1740141780873,4.23141874,98990.0,98989.0,0.0017022]
[1740141782105,4.13577305,98990.0,98989.0,0.0027022]
[1740141783471,4.15900613,98990.0,98989.0,0.0017022]
[1740141783663,4.15200613,98990.0,98989.0,0.0007022]
[1740141783866,4.15900613,98990.0,98989.0,0.0017022]
[1740141784101,4.15900613,98990.0,98989.0,2e-07]
[1740141784436,1.62340578,98990.0,98989.0,2e-07]
[1740141784692,2.92399885,98989.0,98988.0,4e-07]
[1740141784908,0.47021823,98989.0,98988.0,4e-07]
[1740141785784,0.301553,98975.0,98974.0,0.0753]
[1740141786023,1.45754101,98975.0,98974.0,0.0753]
[1740141786254,4.06546801,98975.0,98974.0,0.0753]
[1740141786880,0.151559,98971.0,98970.0,0.0463]
[1740141787110,0.28692088,98971.0,98970.0,0.0463]
[1740141787342,0.28570538,98971.0,98970.0,0.0463]
[1740141788907,0.3012415,98971.0,98970.0,0.0463]
[1740141789107,0.32913306,98971.0,98970.0,0.0463]
[1740141789616,0.15,98970.0,98968.0,0.0768]
[1740141789910,0.43692388,98969.0,98968.0,0.0768]
[1740141790211,0.301564,98968.0,98967.0,0.0017008]
[1740141790407,0.43571038,98968.0,98967.0,0.0017008]
[1740141791648,1.48610938,98968.0,98967.0,0.0017008]
[1740141791858,1.4986455,98968.0,98967.0,0.0017008]
[1740141792846,1.5016455,98968.0,98967.0,0.0017008]
[1740141793312,1.5036455,98968.0,98967.0,0.0017008]
[1740141793525,0.6084775,98968.0,98967.0,0.0017008]
[1740141793749,0.5612565,98968.0,98967.0,0.0017008]
[1740141794446,0.4532465,98968.0,98967.0,0.0017008]
[1740141795653,0.42174581,98968.0,98967.0,0.0017008]
[1740141796528,0.44074844,98968.0,98967.0,0.0017008]
[1740141796760,0.40920969,98968.0,98967.0,0.0017008]
[1740141797335,0.44074877,98968.0,98967.0,0.0017008]
[1740141798938,0.41664969,98968.0,98967.0,0.0798008]
[1740141799550,0.51929538,98968.0,98967.0,0.0798008]
[1740141800178,0.55083849,98968.0,98967.0,0.0798008]
[1740141800747,0.51929538,98968.0,98967.0,0.0798008]
[1740141801500,0.55084087,98968.0,98967.0,0.0798008]
[1740141801703,0.55084087,98968.0,98967.0,0.0017008]
[1740141802425,3.16090144,98968.0,98967.0,0.0017008]
[1740141803138,3.15890144,98968.0,98967.0,0.0017008]
[1740141803363,3.16290144,98968.0,98967.0,0.0017008]
[1740141804167,3.15990144,98968.0,98967.0,0.0017008]
[1740141804370,3.16490144,98968.0,98967.0,0.0017008]
[1740141804920,3.05325575,98968.0,98967.0,0.0017008]
[1740141805396,3.06325575,98968.0,98967.0,0.0017008]
[1740141805965,3.06325575,98968.0,98967.0,8e-07]
[1740141805966,3.38565575,98968.0,98967.0,8e-07]
[1740141806205,3.38565575,98968.0,98962.0,0.0017006]
[1740141806206,0.31611185,98963.0,98962.0,6e-07]
[1740141806407,1.43323917,98963.0,98962.0,6e-07]
[1740141806561,1.46478466,98963.0,98962.0,6e-07]
[1740141808224,1.47178466,98963.0,98962.0,6e-07]
[1740141808547,1.47878466,98963.0,98962.0,6e-07]
[1740141809907,1.49369286,98963.0,98962.0,6e-07]
[1740141810512,1.47878466,98963.0,98962.0,6e-07]
[1740141811708,1.47878466,98963.0,98951.0,0.0469]
[1740141811709,0.301588,98952.0,98951.0,0.0469]
[1740141811867,1.45026081,98952.0,98951.0,0.0469]
[1740141812077,1.46277853,98952.0,98951.0,0.0469]
[1740141812302,0.301594,98948.0,98947.0,0.083101]
[1740141812564,0.43578518,98948.0,98947.0,0.083101]
[1740141813151,0.4483029,98948.0,98947.0,0.083101]
[1740141813794,0.4503029,98948.0,98947.0,0.083101]
[1740141814422,0.4543029,98948.0,98947.0,0.083101]
[1740141816685,0.46884375,98948.0,98947.0,0.001701]
[1740141816903,1.02924875,98948.0,98947.0,0.001701]
[1740141817105,0.88468575,98948.0,98947.0,0.001701]
[1740141817685,0.88068575,98948.0,98947.0,0.001701]
[1740141817885,0.88568575,98948.0,98947.0,0.001701]
[1740141818361,0.4553029,98948.0,98947.0,0.001701]
[1740141818497,0.4627429,98948.0,98947.0,0.001701]
[1740141818710,0.43119741,98948.0,98947.0,0.076801]
[1740141818936,0.42919741,98948.0,98947.0,0.076801]
[1740141819135,0.43319741,98948.0,98947.0,0.076801]
[1740141820582,0.42575741,98948.0,98947.0,0.126001]
[1740141820785,0.43319741,98948.0,98947.0,0.126001]
[1740141821306,0.42067969,98948.0,98947.0,0.126001]
[1740141823293,0.41323969,98948.0,98947.0,0.126001]
[1740141824373,0.40823969,98948.0,98947.0,0.126001]
[1740141824554,0.41023969,98948.0,98947.0,0.126001]
[1740141824969,0.25864569,98948.0,98947.0,0.126001]
[1740141825279,0.25464569,98948.0,98947.0,0.126001]
[1740141825777,0.11208569,98948.0,98947.0,0.126001]
[1740141826019,0.12259687,98948.0,98947.0,0.126001]
[1740141826358,0.12359687,98948.0,98947.0,0.126001]
[1740141826556,0.01351118,98948.0,98947.0,0.146001]
[1740141826785,0.01351118,98948.0,98947.0,0.297597]
[1740141827679,0.01251118,98948.0,98947.0,0.297597]
[1740141828054,0.01351118,98948.0,98947.0,0.297597]
[1740141828839,0.001,98948.0,98947.0,0.297597]
[1740141829248,0.301582,98956.0,98951.0,0.0775]
[1740141829599,0.151584,98955.0,98951.0,0.0765]
[1740141829718,0.301582,98956.0,98951.0,0.228089]
[1740141829931,0.301582,98956.0,98951.0,0.151589]
[1740141830577,0.304582,98956.0,98951.0,0.151589]
[1740141831348,0.304582,98956.0,98948.0,0.202126]
[1740141831546,0.002,98955.0,98947.0,0.070901]
[1740141831890,0.151585,98955.0,98950.0,0.151591]
[1740141832176,0.151585,98955.0,98948.0,0.202126]
[1740141832547,0.151585,98955.0,98949.0,0.0806]
[1740141832965,0.04310199,98955.0,98950.0,0.15159]
[1740141833139,0.152,98955.0,98952.0,0.0806]
[1740141833329,0.155,98955.0,98952.0,0.0806]
[1740141833739,0.152,98955.0,98952.0,0.0806]
[1740141833940,0.152,98955.0,98953.0,0.151586]
[1740141834182,0.005,98955.0,98949.0,0.0806]
[1740141834398,0.005,98955.0,98950.0,0.0823]
[1740141834572,0.003,98955.0,98953.0,0.151586]
[1740141834774,0.003,98955.0,98952.0,0.0823]
[1740141834775,0.003,98955.0,98954.0,0.1023]
[1740141834969,0.005,98955.0,98954.0,0.1023]
[1740141835371,0.002,98955.0,98954.0,0.301885]
[1740141835622,0.003,98955.0,98954.0,0.1503]
[1740141835961,0.003,98955.0,98954.0,0.301885]
[1740141836076,0.002,98955.0,98954.0,0.301885]
[1740141836483,0.005,98955.0,98954.0,0.301885]
[1740141837825,0.003,98955.0,98954.0,0.301885]
[1740141838180,0.004,98955.0,98954.0,0.301885]
[1740141838519,0.001,98955.0,98954.0,0.301885]
[1740141838686,0.001,98955.0,98954.0,0.303885]
[1740141846065,0.001851,98955.0,98954.0,0.31385281]
[1740141846267,0.001851,98955.0,98954.0,0.303885]
[1740141850087,0.001851,98955.0,98954.0,0.1523]
[1740141850214,0.001851,98955.0,98954.0,0.283885]
[1740141850423,0.001851,98955.0,98954.0,0.303885]
[1740141851249,0.001851,98955.0,98954.0,0.301885]
[1740141851454,0.000851,98955.0,98954.0,0.301885]
[1740141851631,0.000851,98955.0,98954.0,0.302885]
[1740141852055,0.000851,98955.0,98954.0,0.301885]
[1740141852465,0.000851,98955.0,98954.0,0.302885]
[1740141862624,0.000851,98955.0,98954.0,0.301885]
[1740141862813,0.01324888,98955.0,98954.0,0.301885]
[1740141863649,0.01324888,98955.0,98954.0,0.281885]
[1740141863849,0.01324888,98955.0,98954.0,0.301885]
[1740141864235,0.01324888,98955.0,98954.0,0.1533]
[1740141864443,0.01324888,98955.0,98954.0,0.304885]
[1740141864647,0.01324888,98955.0,98954.0,0.1533]
[1740141864850,0.01324888,98955.0,98954.0,0.304885]
[1740141865424,0.01324888,98955.0,98954.0,0.301885]
[1740141865934,0.01324888,98955.0,98954.0,0.304885]
[1740141866154,0.01324888,98955.0,98954.0,0.301885]
[1740141866467,0.01324888,98955.0,98954.0,0.1503]
[1740141867463,0.01324888,98955.0,98954.0,0.1523]
[1740141868048,0.01324888,98955.0,98954.0,0.1503]
[1740141868200,0.01324888,98955.0,98954.0,0.1513]
[1740141868409,0.16483288,98955.0,98954.0,0.1513]
[1740141868629,0.16483288,98955.0,98954.0,0.1033]
[1740141869244,0.16483288,98955.0,98954.0,0.021]
[1740141870572,0.23182286,98955.0,98954.0,0.021]
[1740141871517,0.23182286,98955.0,98954.0,0.02]
[1740141872428,0.21942498,98955.0,98954.0,0.02]
[1740141872783,0.152435,98955.0,98954.0,0.02]
[1740141873813,0.152435,98955.0,98954.0,0.0961]
[1740141873982,0.000851,98955.0,98954.0,0.0961]
[1740141874188,0.000851,98955.0,98954.0,0.247685]
[1740141874889,0.000851,98955.0,98954.0,0.0961]
[1740141875326,0.000851,98955.0,98954.0,0.247685]
[1740141876062,0.000851,98955.0,98954.0,0.0961]
[1740141876265,0.152435,98955.0,98954.0,0.0961]
[1740141876959,0.152435,98955.0,98954.0,0.02]
[1740141877165,0.21297449,98955.0,98954.0,0.02]
[1740141877768,0.152435,98955.0,98954.0,0.02]
[1740141879064,0.000851,98955.0,98954.0,0.02]
[1740141881061,0.000851,98955.0,98954.0,0.171585]
[1740141882030,0.000851,98955.0,98954.0,0.251585]
[1740141882652,0.000851,98955.0,98954.0,0.300385]
[1740141884110,0.000851,98955.0,98954.0,0.303385]
[1740141888494,0.000851,98955.0,98954.0,0.625285]
[1740141902833,0.000851,98955.0,98954.0,0.72793069]
[1740141903416,0.000851,98955.0,98954.0,0.73820287]
[1740141904636,0.001851,98955.0,98954.0,0.73520287]
[1740141905035,0.001851,98955.0,98954.0,0.74020287]
[1740141905927,0.001851,98955.0,98954.0,0.73520287]
[1740141906355,0.002851,98955.0,98954.0,0.74120287]
[1740141906715,0.001851,98955.0,98954.0,0.74120287]
[1740141906915,0.002851,98955.0,98954.0,0.74720287]
[1740141907679,0.001851,98955.0,98954.0,0.74120287]
[1740141907904,0.002851,98955.0,98954.0,0.74720287]
[1740141909332,0.002851,98955.0,98954.0,1.29190287]
[1740141916649,0.002851,98955.0,98954.0,1.28690287]
[1740141936487,0.002851,98955.0,98954.0,1.28690287]
[1740141940211,0.001851,98955.0,98954.0,1.28090287]
[1740141940420,0.002851,98955.0,98954.0,1.28590287]
[1740141941193,0.001851,98955.0,98954.0,1.27990287]
[1740141941576,0.002851,98955.0,98954.0,1.28090287]
[1740141947961,0.002851,98955.0,98954.0,1.46544372]
[1740141947962,1e-06,98955.0,98954.0,1.46544372]
[1740141948389,0.0008509,98962.0,98961.0,0.015]
[1740141948599,0.0008509,98962.0,98961.0,0.54563188]
[1740141948737,9e-07,98962.0,98961.0,0.54441969]
[1740141948938,9e-07,98962.0,98961.0,0.55896054]
[1740141949236,9e-07,98962.0,98961.0,1.44556054]
[1740141949440,9e-07,98962.0,98961.0,1.46656054]
[1740141949798,9e-07,98962.0,98961.0,1.47056054]
[1740141949990,9e-07,98962.0,98961.0,1.47560854]
[1740141951262,9e-07,98962.0,98961.0,1.47060854]
[1740141951759,9e-07,98962.0,98961.0,1.47760854]
[1740141951964,0.0008507,98988.0,98987.0,0.166535]
[1740141952184,0.0008507,98988.0,98987.0,0.48964705]
[1740141952340,0.0008507,98988.0,98987.0,0.59108069]
[1740141953157,0.0008507,98988.0,98987.0,0.59408069]
[1740141953546,0.0008507,98988.0,98987.0,0.59708069]
[1740141953749,0.0008507,98988.0,98987.0,0.59408069]
[1740141955293,0.0008507,98988.0,98987.0,0.59608069]
[1740141955497,0.0008507,98988.0,98987.0,0.60108069]
[1740141956701,0.0008507,98988.0,98987.0,1.14578069]
[1740141960145,0.0008507,98988.0,98987.0,1.16635293]
[1740141971844,0.0008507,98988.0,98987.0,1.17097819]
[1740141974974,0.0008507,98988.0,98987.0,1.0683325]
[1740141979931,0.0008507,98988.0,98987.0,0.89622526]
[1740141980162,0.0008507,98988.0,98987.0,1.04776026]
[1740141980634,0.0008507,98988.0,98987.0,0.49806026]
[1740141981071,0.0008507,98988.0,98987.0,0.49306026]
[1740141981210,0.0008507,98988.0,98987.0,0.49506026]
[1740141981409,0.0008507,98988.0,98987.0,0.49706026]
[1740141981885,0.0008507,98988.0,98987.0,0.49506026]
[1740141983071,0.0008507,98988.0,98987.0,0.49606026]
[1740141987303,0.0008507,98988.0,98987.0,0.68020595]
[1740141987502,0.0008507,98988.0,98987.0,0.67820595]
[1740141987722,0.0008507,98988.0,98987.0,0.67720595]
[1740141987938,0.0008507,98988.0,98987.0,0.68220595]
[1740141988177,0.0008507,98988.0,98987.0,0.60570595]
[1740141988653,0.0018507,98988.0,98987.0,0.61270595]
[1740141989076,0.0008507,98988.0,98987.0,0.60070595]
[1740141989620,0.0008507,98988.0,98987.0,0.50506026]
[1740141989916,0.0008507,98988.0,98987.0,0.50006026]
[1740141990118,0.0008507,98988.0,98987.0,0.49706026]
[1740141990263,0.0008507,98988.0,98987.0,0.50006026]
[1740141995776,0.0008507,98988.0,98987.0,0.68400595]
[1740141996859,0.0008507,98988.0,98987.0,0.68100595]
[1740141997056,0.0008507,98988.0,98987.0,0.68338069]
[1740141997511,0.0008507,98988.0,98987.0,0.67938069]
[1740141997665,0.0008507,98988.0,98987.0,0.68638069]
[1740141998198,0.0008507,98988.0,98987.0,0.67938069]
[1740141998540,0.0008507,98988.0,98987.0,0.68638069]
[1740141998699,0.0008507,98988.0,98987.0,0.67938069]
[1740141999268,0.0008507,98988.0,98987.0,0.68638069]
[1740141999505,0.0008507,98988.0,98987.0,0.67938069]
[1740142000100,0.0008507,98988.0,98987.0,0.68638069]
[1740142009735,0.0008507,98988.0,98987.0,0.73538069]
[1740142010166,0.0008507,98988.0,98987.0,1.28008069]
[1740142010563,0.0008507,98988.0,98987.0,1.27308069]
[1740142011010,0.0008507,98988.0,98987.0,1.28008069]
[1740142011200,0.0008507,98988.0,98987.0,1.27308069]
[1740142011604,0.0008507,98988.0,98987.0,1.28008069]
[1740142013346,0.0008507,98988.0,98987.0,1.43008069]
[1740142013678,0.0008507,98988.0,98987.0,1.46462154]
[1740142013892,7e-07,98988.0,98987.0,1.46462154]
[1740142014092,7e-07,98988.0,98987.0,1.48462154]
[1740142014824,7e-07,98988.0,98987.0,1.47762154]
[1740142015077,7e-07,98988.0,98987.0,1.48462154]
[1740142015292,7e-07,98988.0,98987.0,1.47762154]
[1740142015537,7e-07,98988.0,98987.0,1.48462154]
[1740142016758,7e-07,98988.0,98987.0,1.47008069]
[1740142017744,7e-07,98988.0,98987.0,1.48462154]
[1740142022834,5e-07,99009.0,99008.0,0.015]
[1740142023028,5e-07,99009.0,99008.0,1.21675942]
[1740142023238,5e-07,99009.0,99008.0,1.21554769]
[1740142023649,5e-07,99009.0,99008.0,1.36554769]
[1740142023867,5e-07,99009.0,99008.0,1.42008854]
[1740142024282,5e-07,99009.0,99008.0,1.4276251]
[1740142024482,5e-07,99009.0,99008.0,1.4366251]
[1740142024899,0.0798,99044.0,99008.0,1.4366251]
[1740142024900,5e-07,99017.0,99016.0,0.31649]
[1740142025114,5e-07,99017.0,99016.0,1.46867654]
[1740142026161,5e-07,99017.0,99016.0,1.47567654]
[1740142027462,5e-07,99017.0,99016.0,1.46867654]
[1740142027672,5e-07,99017.0,99016.0,1.47567654]
[1740142027885,5e-07,99017.0,99016.0,1.48167654]
[1740142028093,5e-07,99017.0,99016.0,1.46867654]
[1740142028503,5e-07,99017.0,99016.0,1.48267654]
[1740142029829,5e-07,99017.0,99016.0,1.50259198]
[1740142047815,5e-07,99017.0,99016.0,1.52461198]
[1740142048078,5e-07,99017.0,99016.0,1.51761198]
[1740142048587,5e-07,99017.0,99016.0,1.52461198]
[1740142048729,5e-07,99017.0,99016.0,1.51761198]
[1740142049638,5e-07,99017.0,99016.0,1.51061198]
[1740142050018,5e-07,99017.0,99016.0,1.51761198]
[1740142050251,5e-07,99017.0,99016.0,1.52461198]
[1740142053407,0.0008509,99061.0,99047.0,0.166443]
[1740142053627,0.0008509,99061.0,99047.0,0.59219999]
[1740142053822,0.0008509,99061.0,99047.0,0.59098869]
[1740142054816,0.0008509,99061.0,99047.0,0.59698869]
[1740142055022,0.0008509,99061.0,99047.0,0.59098869]
[1740142055830,0.0008509,99061.0,99047.0,0.59798869]
[1740142056040,0.0008509,99061.0,99047.0,0.60498869]
[1740142056472,4e-07,99054.0,99053.0,0.166434]
[1740142056711,4e-07,99054.0,99053.0,0.34819087]
[1740142056879,4e-07,99054.0,99053.0,0.34697969]
[1740142057060,4e-07,99054.0,99053.0,0.36152054]
[1740142057260,4e-07,99054.0,99053.0,0.26907969]
[1740142057691,0.00012976,99054.0,99053.0,0.27607969]
[1740142057859,0.00012976,99054.0,99053.0,0.28307969]
[1740142058300,0.00012976,99054.0,99053.0,0.27607969]
[1740142058679,0.00012976,99054.0,99053.0,0.28307969]
[1740142058886,0.00012976,99054.0,99053.0,0.27607969]
[1740142059103,0.00012976,99054.0,99053.0,0.28607536]
[1740142059713,0.00012976,99054.0,99053.0,0.29307536]
[1740142060412,0.00012976,99054.0,99053.0,0.28607536]
[1740142060618,0.00012976,99054.0,99053.0,1.15967536]
[1740142060772,0.00012976,99054.0,99053.0,1.15267536]
[1740142060976,0.00012976,99054.0,99053.0,1.15967536]
[1740142062262,0.00012976,99054.0,99053.0,1.14967969]
[1740142062869,0.00012976,99054.0,99053.0,1.15982963]
[1740142063266,0.00012976,99054.0,99053.0,1.14967969]
[1740142063844,0.00012976,99054.0,99053.0,1.17997487]
[1740142068210,0.00012976,99054.0,99053.0,1.27997487]
[1740142070074,0.00012976,99054.0,99053.0,1.27997487]
[1740142075747,0.00012976,99054.0,99053.0,1.36157487]
[1740142075995,0.00012976,99054.0,99053.0,1.27997487]
[1740142077211,0.00083106,99068.0,99067.0,0.151412]
[1740142077455,0.00083106,99068.0,99067.0,0.473312]
[1740142078425,0.00083106,99068.0,99067.0,0.480312]
[1740142079133,0.00083106,99068.0,99067.0,0.59795769]
[1740142079485,0.00087414,99068.0,99067.0,0.59795769]
[1740142080048,0.00087414,99068.0,99067.0,0.60295769]
[1740142080999,0.00087414,99068.0,99067.0,0.59095769]
[1740142081217,0.00087414,99068.0,99067.0,0.59695769]
[1740142081419,0.00087414,99068.0,99067.0,0.60395769]
[1740142081540,0.00087414,99068.0,99067.0,1.14865769]
[1740142081745,0.00087414,99068.0,99067.0,1.14165769]
[1740142081943,0.00087414,99068.0,99067.0,1.14865769]
[1740142083148,0.00087414,99068.0,99067.0,1.1688003]
[1740142084722,0.00072484,99085.0,99067.0,1.0173883]
[1740142084949,0.00076792,99085.0,99084.0,0.015]
[1740142086005,0.00076792,99085.0,99084.0,0.166386]
[1740142086234,0.00076792,99085.0,99084.0,0.015]
[1740142087414,0.00076792,99085.0,99084.0,0.016]
[1740142087614,0.15215292,99085.0,99084.0,0.016]
[1740142088161,0.15336842,99085.0,99084.0,0.016]
[1740142088358,0.23666842,99085.0,99084.0,0.016]
[1740142088535,0.23545292,99085.0,99084.0,0.016]
[1740142088747,0.23545292,99085.0,99084.0,0.015]
[1740142090036,0.23545292,99085.0,99083.0,0.3369]
[1740142090243,0.52863169,99084.0,99083.0,0.3219]
[1740142090632,0.5601994,99084.0,99083.0,0.3219]
[1740142093352,0.151394,99079.0,99078.0,0.015]
[1740142093579,1.24959113,99079.0,99078.0,0.015]
[1740142093786,1.24837563,99079.0,99078.0,0.015]
[1740142094166,0.151408,99070.0,99069.0,0.015]
[1740142094335,0.210408,99070.0,99069.0,0.015]
[1740142094530,0.210408,99070.0,99067.0,0.0017002]
[1740142094531,0.338279,99070.0,99067.0,0.0017002]
[1740142094735,0.233911,99068.0,99067.0,0.0017002]
[1740142094932,1.24839263,99068.0,99067.0,0.0017002]
[1740142095969,1.24839263,99068.0,99067.0,0.0027002]
[1740142097164,1.24839263,99068.0,99067.0,0.0047002]
[1740142097404,0.15679399,99079.0,99078.0,0.015]
[1740142097405,0.0074,99079.0,99078.0,0.015]
[1740142098022,1.01448163,99082.0,99081.0,0.166391]
[1740142099608,1.01448163,99082.0,99081.0,0.015]
[1740142101624,0.00076792,99085.0,99084.0,0.3349]
[1740142101852,0.15215292,99085.0,99084.0,0.3349]
[1740142102471,0.15215292,99085.0,99084.0,0.3389]
[1740142102676,0.15215292,99085.0,99084.0,0.3349]
[1740142103054,0.15215292,99085.0,99084.0,0.3369]
[1740142103440,0.15215292,99085.0,99084.0,0.3359]
[1740142103835,0.15215292,99085.0,99084.0,0.3389]
[1740142104841,1.16663455,99085.0,99084.0,0.3389]
[1740142106701,1.16663455,99085.0,99084.0,0.3259]
[1740142107130,1.31663455,99085.0,99084.0,0.3259]
[1740142107558,1.31663455,99085.0,99084.0,0.3229]
[1740142107934,1.31663455,99085.0,99084.0,0.3219]
[1740142111109,1.31663455,99085.0,99083.0,0.013]
[1740142111110,0.15,99084.0,99083.0,0.013]
[1740142111314,0.3026015,99084.0,99083.0,0.013]
[1740142111518,0.301386,99084.0,99083.0,0.013]
[1740142112466,0.302386,99084.0,99083.0,0.013]
[1740142116360,0.292386,99084.0,99083.0,0.013]
[1740142121554,0.292386,99084.0,99083.0,0.163]
[1740142123027,0.141,99084.0,99083.0,0.163]
[1740142123235,0.001,99084.0,99083.0,0.163]
[1740142124409,1.01524955,99085.0,99083.0,0.163]
[1740142125740,1.16663455,99085.0,99083.0,0.163]
[1740142126168,1.01624955,99085.0,99083.0,0.163]
[1740142126496,1.16763455,99085.0,99083.0,0.163]
[1740142126948,0.151386,99084.0,99083.0,0.163]
[1740142127146,1.01624955,99085.0,99083.0,0.163]
[1740142127876,1.01624955,99085.0,99083.0,0.163]
[1740142128251,1.01524955,99085.0,99083.0,0.163]
[1740142129118,1.01624955,99085.0,99083.0,0.163]
[1740142132939,1.01574955,99085.0,99083.0,0.163]
[1740142133790,1.01574955,99085.0,99084.0,0.013]
[1740142134195,0.001,99085.0,99084.0,0.013]
[1740142137344,0.152385,99085.0,99084.0,0.013]
[1740142137677,0.001,99085.0,99084.0,0.013]
[1740142138627,0.152385,99085.0,99084.0,0.013]
[1740142140261,0.153235,99085.0,99084.0,0.013]
[1740142149572,0.00185,99085.0,99084.0,0.013]
[1740142149778,0.153235,99085.0,99084.0,0.013]
[1740142150827,0.00185,99085.0,99084.0,0.013]
[1740142151806,0.0030655,99085.0,99084.0,0.013]
[1740142152071,0.1544505,99085.0,99084.0,0.0147]
[1740142152273,0.153235,99085.0,99084.0,0.0147]
[1740142152710,0.18602068,99085.0,99084.0,0.0147]
[1740142153041,0.03442018,99085.0,99084.0,0.0147]
[1740142153246,0.00285,99085.0,99084.0,0.0939]
[1740142153658,0.154235,99085.0,99084.0,0.0939]
[1740142153909,0.153235,99085.0,99084.0,0.0939]
[1740142154294,0.154235,99085.0,99084.0,0.0939]
[1740142155141,0.154235,99085.0,99084.0,0.0147]
[1740142155549,0.153235,99085.0,99084.0,0.0147]
[1740142155766,0.1544505,99085.0,99084.0,0.0017]
[1740142156113,0.18603004,99085.0,99084.0,0.0017]
[1740142156623,0.54132142,99085.0,99084.0,0.0017]
[1740142156834,0.63084677,99085.0,99084.0,0.0017]